[Event "Klatov Bazar Besiny Cup 2018"]
[Site "Klatovy"]
[Date "2018.07.01"]
[Round "2"]
[White "Neuman, Petr"]
[Black "Furman, Boris"]
[Result "1-0"]
[ECO "B24"]
[WhiteElo "2432"]
[BlackElo "2203"]
[Annotator "ChessBase"]
[PlyCount "87"]
[EventDate "2018.07.01"]
[EventType "swiss"]
[EventCountry "CZE"]
[SourceTitle "playchess.com"]
[Source "ChessBase"]
[SourceQuality "1"]
[TimeControl "40/7200:0"]

1. e4 {[%emt 0:00:00]} c5 {[%emt 0:00:00]} 2. Nc3 {[%emt 0:00:00]} Nc6 {[%emt 0:00:00]} 3. Bb5 {[%emt 0:00:00]} Nd4 {[%emt 0:00:00]} 4. Bc4 {[%emt 0:00:00]} e6 {[%emt 0:00:42]} 5. Nf3 {[%emt 0:00:00]} a6 {[%emt 0:00:26]} 6. d3 {[%emt 0:00:00]} b5 {[%emt 0:00:00]} 7. Bb3 {[%emt 0:00:00]} Nxb3 {[%emt 0:00:24]} 8. axb3 {[%emt 0:00:00]} Bb7 {[%emt 0:00:00]} 9. O-O {[%emt 0:00:00]} Be7 {[%emt 0:02:39]} 10. Qe2 {[%emt 0:00:00]} d6 {[%emt 0:06:42]} 11. Nd2 {[%emt 0:00:00]} e5 {[%emt 0:06:24]} 12. Nd5 {[%emt 0:11:28]} Nf6 {[%emt 0:04:23]} 13. Nxe7 {[%emt 0:00:00]} Qxe7 {[%emt 0:00:00]} 14. c4 {[%emt 0:00:00]} O-O {[%emt 0:00:17]} 15. Re1 {[%emt 0:13:19]} Nd7 {[%emt 0:07:41]} 16. Nf1 {[%emt 0:02:47]} f5 {[%emt 0:06:39]} 17. exf5 {[%emt 0:01:16]} Rxf5 {[%emt 0:00:00]} 18. Ng3 {[%emt 0:00:00]} Rff8 {[%emt 0:00:08]} 19. cxb5 {[%emt 0:07:43]} axb5 {[%emt 0:00:00]} 20. Rxa8 {[%emt 0:00:00]} Bxa8 {[%emt 0:01:55]} 21. b4 {[%emt 0:00:00]} Qh4 {[%emt 0:05:00]} 22. Ne4 {[%emt 0:05:00]} Bxe4 {[%emt 0:14:37]} 23. dxe4 {[%emt 0:02:01]} cxb4 {[%emt 0:02:59]} 24. Rd1 {[%emt 0:06:20]} Nc5 {[%emt 0:02:30]} 25. f3 {[%emt 0:01:35]} Qe7 {[%emt 0:12:38]} 26. Qxb5 {[%emt 0:05:26]} b3 {[%emt 0:04:48]} 27. Be3 {[%emt 0:00:48]} Qc7 {[%emt 0:07:58]} 28. Qc4+ {[%emt 0:04:37]} Qf7 {[%emt 0:04:40]} 29. Rd5 {[%emt 0:13:00]} Rc8 {[%emt 0:10:55]} 30. Bxc5 {[%emt 0:00:16]} Rxc5 {[%emt 0:04:55]} 31. Rxc5 {[%emt 0:00:41]} dxc5 {[%emt 0:00:00]} 32. Qxc5 {[%emt 0:00:09]} Qf4 {[%emt 0:02:43]} 33. Qc3 {[%emt 0:00:40]} Kf8 {[%emt 0:01:49]} 34. g3 {[%emt 0:00:00]} Qg5 {[%emt 0:00:09]} 35. Kg2 {[%emt 0:02:00]} Qd8 {[%emt 0:02:06]} 36. Qxb3 {[%emt 0:17:36]} Qd2+ {[%emt 0:00:00]} 37. Kf1 {[%emt 0:00:00]} Qxh2 {[%emt 0:02:29]} 38. Qb8+ {[%emt 0:00:00]} Kf7 {[%emt 0:00:00]} 39. Qxe5 {[%emt 0:00:00]} Qh1+ {[%emt 0:00:00]} 40. Kf2 {[%emt 0:00:00]} Qh2+ {[%emt 0:00:00]} 41. Ke3 {[%emt 1:59:18]} Qg1+ {[%emt 1:58:27]} 42. Kf4 {[%emt 0:00:16]} Qc1+ {[%emt 0:00:00]} 43. Kg4 {[%emt 0:00:00]} g5 {[%emt 0:01:30]} 44. Qf5+ {[%emt 0:00:00]} 1-0

[Event "Klatov Bazar Besiny Cup 2018"]
[Site "Klatovy"]
[Date "2018.07.01"]
[Round "2"]
[White "Bures, Jaroslav"]
[Black "Soural, Jan"]
[Result "1/2-1/2"]
[ECO "B38"]
[WhiteElo "2406"]
[BlackElo "2192"]
[Annotator "RC"]
[PlyCount "223"]
[EventDate "2018.07.01"]
[EventType "swiss"]
[EventCountry "CZE"]
[SourceTitle "playchess.com"]
[Source "ChessBase"]
[SourceQuality "1"]
[TimeControl "40/7200:0"]

1. e4 c5 2. Nf3 Nc6 3. d4 cxd4 4. Nxd4 g6 5. c4 {[%emt 0:01:22]} Bg7 {[%emt 0:03:41]} 6. Be3 {[%emt 0:00:00]} Nf6 {[%emt 0:00:09]} 7. Nc3 {[%emt 0:00:00]} d6 {[%emt 0:00:00]} 8. Be2 {[%emt 0:00:23]} O-O {[%emt 0:00:00]} 9. Qd2 {[%emt 0:00:42]} Nxd4 {[%emt 0:16:34]} 10. Bxd4 {[%emt 0:00:00]} Bd7 {[%emt 0:00:00]} 11. O-O {[%emt 0:00:03]} Bc6 {[%emt 0:00:47]} 12. f3 {[%emt 0:07:41]} a5 {[%emt 0:00:52]} 13. Rfd1 {[%emt 0:01:35]} Nd7 {[%emt 0:03:11]} 14. b3 {[%emt 0:07:50]} Bxd4+ {[%emt 0:08:03]} 15. Qxd4 {[%emt 0:00:00]} Qb6 {[%emt 0:00:10]} 16. Qxb6 {[%emt 0:00:03]} Nxb6 {[%emt 0:00:00]} 17. Rd4 {[%emt 0:00:00]} Nd7 {[%emt 0:04:53]} 18. Rad1 {[%emt 0:00:00]} Nc5 {[%emt 0:04:04]} 19. Nd5 {[%emt 0:00:00]} Bxd5 {[%emt 0:01:11]} 20. Rxd5 {[%emt 0:00:00]} Rfc8 {[%emt 0:04:46]} 21. Kf2 {[%emt 0:00:00]} Ra6 {[%emt 0:03:30]} 22. e5 {[%emt 0:04:15]} dxe5 {[%emt 0:01:59]} 23. Rxe5 {[%emt 0:00:00]} e6 {[%emt 0:01:02]} 24. Re3 {[%emt 0:06:10]} Rb6 {[%emt 0:03:14]} 25. Ke1 {[%emt 0:02:52]} a4 {[%emt 0:23:21]} 26. Rb1 {[%emt 0:01:47]} axb3 {[%emt 0:03:48]} 27. axb3 {[%emt 0:00:00]} Ra8 {[%emt 0:05:55]} 28. Bd1 {[%emt 0:00:00]} Ra2 {[%emt 0:10:11]} 29. Re2 {[%emt 0:00:00]} Nd3+ {[%emt 0:02:11]} 30. Kf1 {[%emt 0:00:00]} Rba6 {[%emt 0:06:09]} 31. Rxa2 {[%emt 0:00:57]} Rxa2 {[%emt 0:00:00]} 32. b4 {[%emt 0:00:00]} Rf2+ {[%emt 0:01:52]} 33. Kg1 {[%emt 0:00:00]} Rd2 {[%emt 0:00:04]} 34. f4 {[%emt 0:03:40]} Nxb4 {[%emt 0:03:14]} 35. Bf3 {[%emt 0:00:00]} Nd3 {[%emt 0:00:00]} 36. Bxb7 {[%emt 0:00:54]} Nxf4 {[%emt 0:00:44]} 37. c5 {[%emt 0:02:29]} Rc2 {[%emt 0:00:19]} 38. c6 {[%emt 0:00:40]} Rxg2+ {[%emt 0:00:37]} 39. Kf1 {[%emt 0:00:00]} Rc2 {[%emt 0:00:00]} 40. Ra1 {[%emt 0:01:26]} Nd5 {[%emt 0:00:01]} 41. Ra8+ {[%emt 2:00:31]} Kg7 {[%emt 1:59:32]} 42. Rd8 {[%emt 0:00:00]} Ne7 {[%emt 0:01:51]} 43. Rd6 {[%emt 0:00:06]} Kf6 {[%emt 0:00:00]} 44. Ke1 {[%emt 0:00:22]} Rc5 {[%emt 0:00:35]} 45. Kf2 {[%emt 0:00:29]} g5 {[%emt 0:00:29]} 46. Kg2 {[%emt 0:00:06]} h5 {[%emt 0:00:00]} 47. h3 {[%emt 0:00:00]} Rc2+ {[%emt 0:00:00]} 48. Kg1 {[%emt 0:00:00]} Rc1+ {[%emt 0:00:08]} 49. Kg2 {[%emt 0:00:00]} Rc3 {[%emt 0:00:00]} 50. Kh2 {[%emt 0:00:00]} Nd5 {[%emt 0:00:00]} 51. Rd7 {[%emt 0:00:00]} Ne7 {[%emt 0:00:00]} 52. c7 {[%emt 0:00:00]} h4 {[%emt 0:00:16]} 53. Kg2 {[%emt 0:01:53]} e5 {[%emt 0:00:00]} 54. Rxe7 {[%emt 0:01:08]} Kxe7 {[%emt 0:00:00]} 55. c8=Q {[%emt 0:00:00]} Rxc8 {[%emt 0:00:00]} 56. Bxc8 {[%emt 0:00:00]} Kf6 {[%emt 0:00:00]} 57. Kf3 {[%emt 0:00:00]} Kg6 {[%emt 0:00:00]} 58. Ke4 {[%emt 0:00:00]} f6 {[%emt 0:00:00]} 59. Bg4 {[%emt 0:00:32]} Kf7 {[%emt 0:00:00]} 60. Kf5 {[%emt 0:00:00]} Ke7 {[%emt 0:00:00]} 61. Bh5 {[%emt 0:00:28]} Kf8 {[%emt 0:00:00]} 62. Kxf6 {[%emt 0:00:36]} e4 {[%emt 0:00:00]} 63. Bg4 {[%emt 0:00:32]} e3 {[%emt 0:00:00]} 64. Ke5 {[%emt 0:00:00]} Ke7 {[%emt 0:00:00]} 65. Ke4 {[%emt 0:00:00]} Kf6 {[%emt 0:00:00]} 66. Kxe3 {[%emt 0:00:00]} Ke5 {[%emt 0:00:00]} 67. Kf3 {[%emt 0:00:00]} Kd4 {[%emt 0:00:00]} 68. Bf5 {[%emt 0:00:00]} Ke5 {[%emt 0:00:00]} 69. Kg4 {[%emt 0:00:00]} Kf6 {[%emt 0:00:00]} 70. Bc2 {[%emt 0:00:00]} Ke6 {[%emt 0:00:00]} 71. Kh5 {[%emt 0:00:00]} Kf6 {[%emt 0:00:00]} 72. Bd1 {[%emt 0:00:00]} Kf7 {[%emt 0:00:00]} 73. Kh6 {[%emt 0:00:00]} Kf6 {[%emt 0:00:00]} 74. Bc2 {[%emt 0:00:00]} Kf7 {[%emt 0:00:00]} 75. Bd3 {[%emt 0:00:00]} Kf6 {[%emt 0:00:00]} 76. Bg6 {[%emt 0:00:00]} Ke7 {[%emt 0:00:00]} 77. Kg7 {[%emt 0:00:00]} Ke6 {[%emt 0:00:00]} 78. Bh5 {[%emt 0:00:00]} Ke7 {[%emt 0:00:00]} 79. Bf7 {[%emt 0:00:00]} Kd6 {[%emt 0:00:00]} 80. Kf6 {[%emt 0:00:00]} Kd7 {[%emt 0:00:00]} 81. Ke5 {[%emt 1:56:26]} Ke7 {[%emt 1:59:39]} 82. Be6 {[%emt 0:00:00]} Kd8 {[%emt 0:00:00]} 83. Kf6 {[%emt 0:00:00]} Ke8 {[%emt 0:00:00]} 84. Bf5 {[%emt 0:00:00]} Kd8 {[%emt 0:00:00]} 85. Kf7 {[%emt 0:00:00]} Kc7 {[%emt 0:00:00]} 86. Ke7 {[%emt 0:00:00]} Kc6 {[%emt 0:00:00]} 87. Ke6 {[%emt 0:00:00]} Kc7 {[%emt 0:00:00]} 88. Be4 {[%emt 0:00:00]} Kd8 {[%emt 0:00:00]} 89. Bc6 {[%emt 0:00:00]} Kc7 {[%emt 0:00:00]} 90. Kd5 {[%emt 0:00:00]} Kd8 {[%emt 0:00:00]} 91. Kd6 {[%emt 0:00:00]} Kc8 {[%emt 0:00:00]} 92. Ba4 {[%emt 0:00:00]} Kb7 {[%emt 0:00:00]} 93. Bd7 {[%emt 0:00:00]} Kb6 {[%emt 0:00:00]} 94. Bc6 {[%emt 0:00:00]} Ka5 {[%emt 0:00:00]} 95. Kc5 {[%emt 0:00:00]} Ka6 {[%emt 0:00:00]} 96. Be4 {[%emt 0:00:00]} Ka7 {[%emt 0:00:00]} 97. Kb5 {[%emt 0:00:00]} Kb8 {[%emt 0:00:00]} 98. Kc6 {[%emt 0:00:00]} Kc8 {[%emt 0:00:00]} 99. Bg6 {[%emt 0:00:00]} Kd8 {[%emt 0:00:00]} 100. Kd6 {[%emt 0:00:00]} Kc8 {[%emt 0:00:00]} 101. Be4 {[%emt 0:00:00]} Kd8 {[%emt 0:00:00]} 102. Bf5 {[%emt 0:00:00]} Ke8 {[%emt 0:00:00]} 103. Be6 {[%emt 0:00:00]} Kf8 {[%emt 0:00:00]} 104. Kd5 {[%emt 0:00:00]} Ke8 {[%emt 0:00:00]} 105. Ke4 {[%emt 0:00:00]} Kf8 {[%emt 0:00:00]} 106. Kf5 {[%emt 0:00:00]} Ke7 {[%emt 0:00:00]} 107. Ke5 {[%emt 0:00:00]} Kf8 {[%emt 0:00:00]} 108. Kf6 {[%emt 0:00:00]} Ke8 {[%emt 0:00:00]} 109. Bc4 {[%emt 0:00:00]} Kd7 {[%emt 0:00:00]} 110. Bb3 {[%emt 0:00:00]} Ke8 {[%emt 0:00:00]} 111. Be6 {[%emt 0:00:00]} Kd8 {[%emt 0:00:00]} 112. Kxg5 {[%emt 0:06:53]} 1/2-1/2

[Event "Klatov Bazar Besiny Cup 2018"]
[Site "Klatovy"]
[Date "2018.07.01"]
[Round "2"]
[White "Straka, Vojtech"]
[Black "Simunek, Filip"]
[Result "1-0"]
[ECO "D91"]
[WhiteElo "2379"]
[BlackElo "2184"]
[Annotator "NA"]
[PlyCount "91"]
[EventDate "2018.07.01"]
[EventType "swiss"]
[EventCountry "CZE"]
[SourceTitle "playchess.com"]
[Source "ChessBase"]
[SourceQuality "1"]
[TimeControl "40/7200:0"]

1. d4 {[%emt 0:00:00]} Nf6 {[%emt 0:00:33]} 2. Nf3 {[%emt 0:00:00]} g6 {[%emt 0:00:00]} 3. c4 {[%emt 0:00:00]} Bg7 {[%emt 0:00:00]} 4. Nc3 {[%emt 0:00:00]} d5 {[%emt 0:00:00]} 5. Bg5 {[%emt 0:04:23]} Ne4 {[%emt 0:00:03]} 6. Bh4 {[%emt 0:00:00]} Nxc3 {[%emt 0:00:29]} 7. bxc3 {[%emt 0:00:00]} c5 {[%emt 0:04:44]} 8. cxd5 {[%emt 0:00:44]} Qxd5 {[%emt 0:00:32]} 9. e3 {[%emt 0:00:00]} Nc6 {[%emt 0:03:38]} 10. Be2 {[%emt 0:02:50]} O-O {[%emt 0:00:59]} 11. O-O {[%emt 0:00:19] D91: Grünfeld: 4 Nf3 Bg7 5 Bg5} Re8 {[%emt 0:10:30]} (11... b6 12. Qb3 Be6 13. Qa3 Qh5 14. Bg3 cxd4 15. cxd4 Qa5 16. Qxa5 Nxa5 17. Rfc1 Rfc8 18. Bc7 Bd5 {½-½ (53) Ponomariov,R (2723)-Mamedyarov,S (2733) Beijing 2011}) 12. Bg3 {[%emt 0:15:52]} Qd8 $146 {[%emt 0:17:29]} ({Predecessor:} 12... b6 13. Qa4 Bb7 14. Rab1 cxd4 15. cxd4 Na5 16. Rfe1 Rec8 17. Bf1 Qc6 18. Qa3 Bf8 {1-0 (29) Sos Andreu,E (2345)-Garcia Marin,G (2099) Barbera del Valles 2014}) 13. Rb1 {[%emt 0:05:49]} a6 {[%emt 0:03:14]} 14. Qa4 {[%emt 0:09:07]} Bd7 {[%emt 0:10:32]} 15. Qa3 {[%emt 0:12:36]} ({Don't play} 15. Rxb7 Nxd4 16. Qd1 Ba4 $15) 15... cxd4 {[%emt 0:07:57]} 16. cxd4 {[%emt 0:00:16]} b5 {[%emt 0:00:13]} 17. Rbc1 {[%emt 0:06:28]} Qb6 {[%emt 0:08:18]} 18. d5 {[%emt 0:15:37]} Nb8 {[%emt 0:05:59]} 19. Bc7 {[%emt 0:03:38]} Qf6 {[%emt 0:02:32]} 20. Ne5 {[%emt 0:06:34]} b4 {[%emt 0:08:18]} 21. Qxb4 {[%emt 0:00:34]} Bb5 {[%emt 0:01:25]} 22. Bxb5 {[%emt 0:00:00]} axb5 {[%emt 0:00:00]} 23. Bxb8 {[%emt 0:00:00]} Raxb8 {[%emt 0:10:00]} 24. Nd7 {[%emt 0:00:00]} Qb2 {[%emt 0:00:00]} 25. Qxb2 {[%emt 0:00:00]} Bxb2 {[%emt 0:00:00]} 26. Rb1 {[%emt 0:00:00]} Rbd8 {[%emt 0:04:04]} 27. Rxb2 {[%emt 0:00:00]} Rxd7 {[%emt 0:00:00]} 28. Rxb5 {[%emt 0:00:00]} Ra8 {[%emt 0:00:00]} 29. Ra1 {[%emt 0:00:00]} Rda7 {[%emt 0:00:00]} 30. Rb2 {[%emt 0:00:00]} f5 {[%emt 0:03:06]} 31. Kf1 {[%emt 0:01:12]} Kf7 {[%emt 0:00:22]} 32. Ke2 {[%emt 0:00:14]} Kf6 {[%emt 0:00:00]} 33. f4 {[%emt 0:00:25]} Ra5 {[%emt 0:01:00]} 34. Rd2 {[%emt 0:00:00]} R8a6 {[%emt 0:00:38]} 35. Kf3 {[%emt 0:00:04]} Ra4 {[%emt 0:00:48]} 36. h3 {[%emt 0:00:07]} h5 {[%emt 0:01:40]} 37. g4 {[%emt 0:02:19]} hxg4+ {[%emt 0:00:19]} 38. hxg4 {[%emt 0:00:42]} Kf7 {[%emt 0:02:44]} 39. Rh2 {[%emt 0:02:20]} R6a5 {[%emt 0:01:06]} 40. Rh7+ {[%emt 0:02:52]} Ke8 {[%emt 0:02:08]} 41. gxf5 {[%emt 1:59:39]} gxf5 {[%emt 1:59:41]} 42. d6 {[%emt 0:01:16]} Re4 {[%emt 0:01:56]} 43. Rd1 {[%emt 0:01:46]} exd6 {[%emt 0:00:13]} 44. Rb1 {[%emt 0:00:00]} Kf8 {[%emt 0:01:10]} 45. Rb8+ {[%emt 0:00:00]} Re8 {[%emt 0:00:00]} 46. Rh8+ {[%emt 0:00:00]} 1-0

[Event "Klatov Bazar Besiny Cup 2018"]
[Site "Klatovy"]
[Date "2018.07.01"]
[Round "2"]
[White "Toman, Ondrej"]
[Black "Krzyzanowski, Marcin"]
[Result "1/2-1/2"]
[ECO "A45"]
[WhiteElo "2197"]
[BlackElo "2473"]
[Annotator "ChessBase"]
[PlyCount "76"]
[EventDate "2018.07.01"]
[EventType "swiss"]
[EventCountry "CZE"]
[SourceTitle "playchess.com"]
[Source "ChessBase"]
[SourceQuality "1"]
[TimeControl "40/7200:0"]

1. d4 {[%emt 0:00:00]} Nf6 {[%emt 0:00:00]} 2. Bf4 {[%emt 0:00:00]} g6 {[%emt 0:00:00]} 3. e3 {[%emt 0:00:00]} Bg7 {[%emt 0:00:00]} 4. h3 {[%emt 0:00:00]} d6 {[%emt 0:01:12]} 5. Nf3 {[%emt 0:00:00]} O-O {[%emt 0:00:00]} 6. Be2 {[%emt 0:00:00]} Nbd7 {[%emt 0:00:00]} 7. O-O {[%emt 0:00:00]} Qe8 {[%emt 0:01:00]} 8. Nc3 {[%emt 0:02:39]} e5 {[%emt 0:01:39]} 9. Bh2 {[%emt 0:00:00]} Qe7 {[%emt 0:00:10]} 10. dxe5 {[%emt 0:04:33]} dxe5 {[%emt 0:02:20]} 11. Nd5 {[%emt 0:00:07]} Nxd5 {[%emt 0:00:48]} 12. Qxd5 {[%emt 0:00:00]} Nb6 {[%emt 0:01:58]} 13. Qa5 {[%emt 0:01:20]} c5 {[%emt 0:12:22]} 14. Rfd1 {[%emt 0:05:25]} Bf5 {[%emt 0:02:45]} 15. c3 {[%emt 0:02:56]} Bc2 {[%emt 0:02:24]} 16. Rd2 {[%emt 0:01:57]} Be4 {[%emt 0:00:00]} 17. Ne1 {[%emt 0:06:02]} f5 {[%emt 0:02:02]} 18. Qb5 {[%emt 0:05:48]} Bc6 {[%emt 0:04:02]} 19. Qb3+ {[%emt 0:00:07]} Kh8 {[%emt 0:00:00]} 20. a4 {[%emt 0:05:06]} f4 {[%emt 0:02:43]} 21. exf4 {[%emt 0:03:50]} exf4 {[%emt 0:00:00]} 22. a5 {[%emt 0:03:36]} Nd7 {[%emt 0:00:15]} 23. Bf3 {[%emt 0:01:07]} Rae8 {[%emt 0:02:06]} 24. Re2 {[%emt 0:04:35]} Ne5 {[%emt 0:00:35]} 25. Kh1 {[%emt 0:05:14]} Qc7 {[%emt 0:07:50]} 26. Bxc6 {[%emt 0:03:05]} Qxc6 {[%emt 0:00:04]} 27. f3 {[%emt 0:00:00]} Qa6 {[%emt 0:01:47]} 28. Rf2 {[%emt 0:08:48]} g5 {[%emt 0:12:57]} 29. Bg1 {[%emt 0:02:18]} h5 {[%emt 0:01:13]} 30. Qd5 {[%emt 0:03:34]} Rc8 {[%emt 0:02:37]} 31. Qe4 {[%emt 0:02:22]} Rfe8 {[%emt 0:07:58]} 32. Qc2 {[%emt 0:03:28]} Bf6 {[%emt 0:05:06]} 33. Rd2 {[%emt 0:06:23]} Qe6 {[%emt 0:03:32]} 34. Rad1 {[%emt 0:02:19]} Re7 {[%emt 0:04:03]} 35. Rd6 {[%emt 0:01:04]} Qf7 {[%emt 0:00:00]} 36. Qf5 {[%emt 0:00:10]} Rc6 {[%emt 0:04:00]} 37. Bxc5 {[%emt 0:03:11]} Rxd6 {[%emt 0:13:32]} 38. Bxd6 {[%emt 0:10:04]} Qe6 {[%emt 0:01:59]} 1/2-1/2

[Event "Klatov Bazar Besiny Cup 2018"]
[Site "Klatovy"]
[Date "2018.07.01"]
[Round "2"]
[White "Hadraba, Vladimir"]
[Black "Xu, Xianliang"]
[Result "0-1"]
[ECO "B34"]
[WhiteElo "2192"]
[BlackElo "2430"]
[Annotator "NA"]
[PlyCount "66"]
[EventDate "2018.07.01"]
[EventType "swiss"]
[EventCountry "CZE"]
[SourceTitle "playchess.com"]
[Source "ChessBase"]
[SourceQuality "1"]
[TimeControl "40/7200:0"]

1. e4 {[%emt 0:00:00]} c5 {[%emt 0:00:00]} 2. Nf3 {[%emt 0:00:00]} g6 {[%emt 0:00:00]} 3. d4 {[%emt 0:00:00]} cxd4 {[%emt 0:00:00]} 4. Nxd4 {[%emt 0:00:00]} Nc6 {[%emt 0:00:00]} 5. Nc3 {[%emt 0:00:00]} Bg7 {[%emt 0:00:00]} 6. Be3 {[%emt 0:00:00]} Nf6 {[%emt 0:00:00]} 7. Nb3 {[%emt 0:01:51]} O-O {[%emt 0:00:00]} 8. Be2 {[%emt 0:00:29]} d6 {[%emt 0:00:00]} 9. f4 {[%emt 0:01:06]} e5 {[%emt 0:00:31]} 10. O-O {[%emt 0:09:17] B72: Sicilian Dragon: 6 Be3, lines with h3+Bc4 and sidelines} exf4 {[%emt 0:01:06]} 11. Bxf4 {[%emt 0:00:00]} Re8 {[%emt 0:00:00]} 12. Bf3 {[%emt 0:20:34]} (12. Qxd6 Qb6+ 13. Kh1 Nxe4 14. Nxe4 Rxe4 15. Bf3 Re6 16. Qd2 Re8 17. c3 Be6 {½-½ (38) Tiviakov,S (2650)-Bruzon Batista,L (2689) Bogota 2011}) 12... Qb6+ $146 {[%emt 0:02:49]} ({Predecessor:} 12... Ne5 13. Kh1 a6 14. a4 Nc4 15. Nd2 Ne5 16. Nb3 h6 17. a5 g5 {0-1 (41) Donado Mazarron Gomez,M (2101)-Nicolas Zapata,I (2267) La Roda 2014}) 13. Kh1 {[%emt 0:00:00]} Ne5 {[%emt 0:02:18]} 14. Bg5 {[%emt 0:09:18]} Nfg4 {[%emt 0:10:07]} 15. Qe2 {[%emt 0:08:32]} Be6 {[%emt 0:10:00]} 16. Nd5 {[%emt 0:05:17]} (16. Bxg4 $15 Nxg4 17. h3) 16... Bxd5 $1 {[%emt 0:02:46]} 17. exd5 {[%emt 0:00:00]} Nxf3 {[%emt 0:07:26]} 18. Qxf3 {[%emt 0:00:00]} f5 {[%emt 0:00:00]} 19. c3 {[%emt 0:00:27]} Rac8 {[%emt 0:06:29]} 20. h3 {[%emt 0:06:28]} Ne5 {[%emt 0:01:28]} 21. Qf2 {[%emt 0:01:47]} Qxf2 {[%emt 0:03:42]} 22. Rxf2 {[%emt 0:00:00] [#]} h6 $1 {[%emt 0:00:40]} 23. Bf4 {[%emt 0:03:20]} Nd3 {[%emt 0:02:16]} 24. Rf3 {[%emt 0:00:00]} Nxb2 {[%emt 0:05:10]} 25. Bxd6 {[%emt 0:00:00]} Rcd8 {[%emt 0:06:04]} ({Bloß nicht} 25... Rxc3 26. Rxc3 Bxc3 27. Rc1 $17) 26. Bc5 {[%emt 0:02:09]} b6 {[%emt 0:00:42]} ({Keinesfalls} 26... Rxd5 27. Bxa7 Rd1+ 28. Rxd1 $17) 27. Bd4 {[%emt 0:00:00]} Rxd5 {[%emt 0:00:17]} 28. Bxg7 {[%emt 0:00:00]} Kxg7 {[%emt 0:00:00]} 29. Nd4 {[%emt 0:00:00]} Re4 $19 {[%emt 0:08:42]} 30. Rb1 {[%emt 0:04:09]} Nc4 {[%emt 0:01:33]} 31. Rd1 {[%emt 0:00:59]} Kh7 {[%emt 0:02:37]} 32. Kh2 {[%emt 0:03:18]} b5 {[%emt 0:02:48]} 33. Rdd3 {[%emt 0:01:55]} Ne5 {[%emt 0:00:39]} 0-1

[Event "Klatov Bazar Besiny Cup 2018"]
[Site "Klatovy"]
[Date "2018.07.01"]
[Round "2"]
[White "Eret, Matous"]
[Black "Pulpan, Jakub"]
[Result "0-1"]
[ECO "A01"]
[WhiteElo "2184"]
[BlackElo "2386"]
[Annotator "NA"]
[PlyCount "84"]
[EventDate "2018.07.01"]
[EventType "swiss"]
[EventCountry "CZE"]
[SourceTitle "playchess.com"]
[Source "ChessBase"]
[SourceQuality "1"]
[TimeControl "40/7200:0"]

1. b3 {[%emt 0:00:00]} e5 {[%emt 0:04:19]} 2. Bb2 {[%emt 0:00:00]} Nc6 {[%emt 0:00:15]} 3. g3 {[%emt 0:00:00]} d5 {[%emt 0:00:00]} 4. Bg2 {[%emt 0:00:00]} Nf6 {[%emt 0:00:08]} 5. d3 {[%emt 0:02:24] A01: Nimzowitsch-Larsen Opening} (5. e3 Be7 6. d3 Be6 7. Ne2 O-O 8. Nd2 a5 9. a3 Qd7 10. h3 d4 11. e4 g6 12. f4 exf4 13. gxf4 {½-½ (42) Kamsky,G (2762)-Grischuk,A (2764) Beijing 2012}) 5... Bf5 {[%emt 0:10:58]} 6. Nf3 {[%emt 0:03:35]} Bd6 {[%emt 0:00:18]} 7. Nbd2 {[%emt 0:00:19]} Qd7 {[%emt 0:03:59]} 8. Nh4 $146 {[%emt 0:13:11]} ({Predecessor:} 8. O-O Bh3 9. Re1 Bxg2 10. Kxg2 O-O 11. Qc1 h6 12. c3 e4 13. dxe4 dxe4 {0-1 (25) Pimenta,M-Janke,L Brusque 2000}) 8... Be6 {[%emt 0:11:12]} 9. c4 {[%emt 0:05:00]} d4 {[%emt 0:07:11]} 10. a3 {[%emt 0:07:20]} a5 {[%emt 0:07:52]} 11. Qc2 {[%emt 0:03:49]} Bh3 {[%emt 0:03:56]} 12. O-O {[%emt 0:10:06]} Bxg2 {[%emt 0:02:30]} 13. Kxg2 {[%emt 0:00:36]} g5 {[%emt 0:02:33]} 14. Nhf3 {[%emt 0:00:00]} g4 {[%emt 0:00:22]} 15. Ng5 {[%emt 0:03:14]} (15. Nh4 $15) 15... h5 {[%emt 0:02:12]} 16. e3 {[%emt 0:18:26]} Rg8 {[%emt 0:11:45]} 17. Nge4 {[%emt 0:02:52]} Nxe4 {[%emt 0:04:28]} 18. Nxe4 {[%emt 0:00:03]} Be7 {[%emt 0:02:17]} 19. exd4 {[%emt 0:00:19]} Nxd4 {[%emt 0:03:06]} 20. Bxd4 {[%emt 0:00:00]} Qxd4 {[%emt 0:01:02]} 21. Rad1 {[%emt 0:05:57]} O-O-O {[%emt 0:01:12]} 22. b4 {[%emt 0:01:21]} Qb6 {[%emt 0:17:44]} 23. Qa4 {[%emt 0:09:36]} f5 {[%emt 0:01:33]} 24. Nc3 {[%emt 0:02:28]} Qc6+ {[%emt 0:00:44]} 25. Qxc6 {[%emt 0:00:00]} bxc6 {[%emt 0:00:00]} 26. Na2 {[%emt 0:04:40]} Kd7 {[%emt 0:03:11]} 27. d4 {[%emt 0:01:09]} e4 {[%emt 0:00:45]} 28. d5 $1 {[%emt 0:05:37]} c5 {[%emt 0:00:25]} 29. b5 {[%emt 0:00:22]} h4 {[%emt 0:00:01]} 30. Nc3 {[%emt 0:02:11]} Bd6 {[%emt 0:01:18]} 31. Rfe1 {[%emt 0:03:23]} Rg7 {[%emt 0:01:19]} 32. Ne2 {[%emt 0:01:20]} Rh8 {[%emt 0:02:48]} 33. Nf4 {[%emt 0:00:40]} hxg3 {[%emt 0:01:17]} 34. hxg3 {[%emt 0:00:00]} Bxf4 {[%emt 0:00:14]} 35. gxf4 {[%emt 0:00:00]} Rh3 {[%emt 0:00:51]} 36. Rh1 {[%emt 0:02:22]} Rf3 {[%emt 0:00:26]} 37. d6 {[%emt 0:00:29]} g3 {[%emt 0:00:11]} 38. dxc7+ {[%emt 0:02:09]} Kxc7 {[%emt 0:00:00]} 39. fxg3 {[%emt 0:00:49]} Rgxg3+ {[%emt 0:00:00]} 40. Kh2 {[%emt 0:00:00]} Rh3+ {[%emt 0:00:00]} 41. Kg2 {[%emt 1:59:13]} Rfg3+ {[%emt 1:58:56]} 42. Kf2 {[%emt 0:00:00]} e3+ {[%emt 0:00:00]} 0-1